Cogmind - Beta 16 @@@ ROGUE MODE // 2025.12.26 @ 19:17:21 Player: AngelSpirit Result: Destroyed by TA-XFS(R) with Subdweller Laser Performance ------------- Evolutions (0) 0 Regions Visited (2) 400 Robots Destroyed (54) 270 Value Destroyed (1158) 1158 Prototype IDs (0) 0 Alien Tech Used (0) 0 Bonus (0) 0 TOTAL SCORE: 1828 Bonus ------- None Cogmind --------- Core Integrity 0/250 Matter 217/300 Energy 196/200 System Corruption 0% Temperature Cool (6) Movement Rolling (131) Ox3 Location -10/Subcaves Parts ------- > --- POWER (1) -------- Subdweller Power Source > --- PROPULSION (2) --- Wheel Subdweller Monowheel > --- UTILITY (2) ------ Huge Storage Unit Backup Plating III > --- WEAPON (2) ------- Subdweller Laser Subdweller Machine Gun > --- INVENTORY (25) --- Light Ion Engine Subdweller Power Source Wheel Wheel Wheel Wheel Subdweller Monowheel Subdweller Monowheel Medium Storage Unit Structural Scanner Machine Analyzer Backup Plating III Backup Plating III Hacking Suite Rainbow Chip Makeshift Laser Barrage Gun Light Cannon Light Cannon Datajack Multitool Hammer Peak State ------------ > --- POWER ------------ Subdweller Power Source > --- PROPULSION ------- Subdweller Monowheel Subdweller Monowheel > --- UTILITY ---------- Huge Storage Unit Makeshift Thermal Plating > --- WEAPON ----------- Subdweller Laser Subdweller Machine Gun > --- INVENTORY -------- Light Ion Engine Subdweller Power Source Wheel Wheel Wheel Wheel Wheel Subdweller Monowheel Subdweller Monowheel Subdweller Monowheel Medium Storage Unit Structural Scanner Machine Analyzer Backup Plating III Backup Plating III Backup Plating III Hacking Suite Rainbow Chip Subdweller Machine Gun Subdweller Machine Gun Light Cannon Light Cannon Datajack Multitool Hammer [Rating: 20] Favorites ----------- Power Subdweller Power Source Engine Subdweller Power Source Propulsion Subdweller Monowheel Wheel Subdweller Monowheel Utility Huge Storage Unit Device Sensor Array Storage Huge Storage Unit Processor Targeting Computer Protection Backup Plating III Weapon Subdweller Machine Gun Energy Gun EM Pulse Gun Ballistic Gun Subdweller Machine Gun Ballistic Cannon Light Cannon Impact Weapon Hammer Build | -11 -10 -10 ------- Run | Yrd Mat Sub Slots Evolved . | . . . Power . | . . . Propulsion . | . . . Utility . | . . . Weapon . | . . . Parts Attached 45 | 5 16 24 Power 7 | 1 1 5 Engine 7 | 1 1 5 Core . | . . . Reactor . | . . . Propulsion 12 | 2 3 7 Treads . | . . . Leg . | . . . Wheel 12 | 2 3 7 Hover . | . . . Flight . | . . . Utility 11 | 1 5 5 Device 3 | . 1 2 Storage 3 | 1 2 . Processor 1 | . 1 . Hackware . | . . . Protection 4 | . 1 3 Artifact . | . . . Weapon 15 | 1 7 7 Energy Gun 6 | . 4 2 Energy Cannon . | . . . Ballistic Gun 6 | 1 . 5 Ballistic Cannon 2 | . 2 . Launcher . | . . . Special Weapon . | . . . Impact Weapon 1 | . 1 . Slashing Weapon . | . . . Piercing Weapon . | . . . Special Melee Weapon . | . . . Unidentified Prototypes . | . . . Parts Lost 9 | . 3 6 Power 1 | . 1 . Propulsion 1 | . 1 . Utility 3 | . . 3 Weapon 4 | . 1 3 Highest Loss Streak 2 | . 2 2 To Critical Strikes . | . . . Average Backups 18 | 1 10 24 Power 1 | . . 2 Propulsion 5 | . 2 7 Utility 6 | . 4 8 Weapon 3 | . 2 4 Tool/Special . | . . . Unused Backups 22 | . 2 20 Power 2 | . . 2 Propulsion 5 | . . 5 Utility 8 | . 1 7 Weapon 5 | . 1 4 Tool/Special 2 | . . 2 Average Slot Usage (%) 99 | . 99 99 Engine 13 | . 13 14 Wheel 27 | . 27 27 Device 2 | . . 3 Storage 14 | . 14 14 Processor 1 | . 3 . Protection 10 | . 9 10 Energy Gun 7 | . 13 2 Ballistic Gun 12 | . . 21 Ballistic Cannon 5 | . 8 3 Impact Weapon 2 | . 5 . Peak Build Rating 20 | 5 11 20 Average Rating 14 | 4 9 18 On Entrance 5 | . 5 11 Avg Prop Armor Cover (%) . | . . . Naked Turns . | . . . Heaviest Build 97 | 11 93 97 Greatest Support 40 | 20 32 40 Greatest Overweight (x) 5 | . 5 4 Average Overweight (x) 2 | . 2 2 Largest Inventory Capacity 25 | 8 25 25 Average Capacity 24 | 7 24 25 Most Carried 25 | 2 17 25 Average Carried 18 | . 10 24 Final Capacity 25 | 8 25 25 Final Carried 22 | 2 17 22 Class Distribution -------------------- 68% | Mutant 31% | Scavenger-Mutant Dominant Class ---------------- Mutant | -10/Materials Scavenger-Mutant | -10/Subcaves Resources | -11 -10 -10 ----------- Run | Yrd Mat Sub Matter Collected 929 | 232 222 475 Remotely . | . . . Salvage Created 1382 | . 860 522 Parts 100 | . 55 45 Haulers Intercepted 2 | . 2 . Recyclers Shooed . | . . . Parts Field Recycled . | . . . Retrieved Matter . | . . . Parts Self-Destructed 9 | . . 9 Prevented . | . . . Parts Restored . | . . . Kills | -11 -10 -10 ------- Run | Yrd Mat Sub Combat Hostiles Destroyed 32 | . 13 19 Guns 22 | . 7 15 Cannons 4 | . . 4 AOE 4 | . 4 . Classes Destroyed 10 | . 9 1 Worker 7 | . 7 . Builder 6 | . 6 . Tunneler 1 | . 1 . Hauler 2 | . 2 . Recycler 1 | . 1 . Operator 2 | . 2 . Watcher 3 | . 3 . Swarmer 10 | . 6 4 Grunt 7 | . 7 . Subdweller 15 | . . 15 Best Kill Streak 6 | . 6 4 Combat Bots Only 5 | . 5 4 Max Kills in Single Turn 2 | . 2 1 Gunslinging . | . . . Exploded 1 | . 1 . Melee . | . . . Uniques/NPCs Destroyed . | . . . Combat | -11 -10 -10 -------- Run | Yrd Mat Sub Hostile Shots Fired 161 | . 66 95 Missed 53 | . 16 37 Hits 108 | . 50 58 Projectile 108 | . 50 58 Critical Strikes 3 | . 1 2 Damage Taken 1685 | . 583 1102 Core 256 | . 80 176 Absorbed by Shields . | . . . Ignored by Resistances 33 | . . 33 Core Remaining (%) 100 | 100 . . Volleys Fired 116 | . 53 63 Largest 2 | . 2 2 Hottest 90 | . 80 90 Shots Fired 228 | . 103 125 Gun 198 | . 92 106 Cannon 30 | . 11 19 Launcher . | . . . Special . | . . . Kinetic 126 | . 11 115 Thermal 10 | . . 10 Explosive . | . . . Electromagnetic 92 | . 92 . Robot Hit Streak 13 | . 12 13 Robot Miss Streak 5 | . 5 3 Penetration Max . | . . . Secondary Targets 2 | . 1 1 Max Gunslinging Chain 1 | . 1 1 Shots Hit Robots 161 | . 70 91 Core Hits 68 | . 34 34 Critical Kills . | . . . Critical Parts Destroyed 1 | . 1 . Critical Strikes 4 | . 2 2 Blast 2 | . . 2 Corrupt 1 | . 1 . Smash 1 | . 1 . Melee Attacks 23 | . 23 . Impact 23 | . 23 . Slashing . | . . . Piercing . | . . . Sneak Attacks 12 | . 12 . Combat Hostiles . | . . . Follow-up Attacks . | . . . Damage Inflicted 3765 | . 2013 1752 Guns 2177 | . 681 1496 Cannons 368 | . 112 256 Explosions 474 | . 474 . Melee 746 | . 746 . Ramming . | . . . Kinetic 1723 | . 112 1611 Thermal 615 | . 474 141 Explosive . | . . . Electromagnetic 681 | . 681 . Impact 746 | . 746 . Slashing . | . . . Piercing . | . . . Highest Corruption . | . . . Average Corruption . | . . . Corruption Purged . | . . . Corruption Blocked . | . . . Overload Shots . | . . . Overflow Damage 217 | . 217 . Projectiles . | . . . Explosions 20 | . 20 . Melee 197 | . 197 . Knockbacks 9 | . 7 2 Impact 5 | . 5 . Kinetic 4 | . 2 2 Secondary . | . . . Self-Inflicted Damage . | . . . Shots . | . . . Rammed . | . . . Targets Rammed . | . . . Kicked . | . . . Crushed . | . . . Highest Temperature 194 | . 194 . Average Temperature 59 | . 59 . Received Heat Transfer 384 | . 231 153 Siege Activations . | . . . Martial Activations . | . . . Shielding Activations . | . . . Robots Disrupted . | . . . Combat Hostiles . | . . . Robots Corrupted 6 | . 6 . Combat Hostiles 2 | . 2 . Parts Fried 11 | . 11 . Impact Corruptions 10 | . 10 . Robots Melted . | . . . Combat Hostiles . | . . . Parts Melted . | . . . Heat Transferred 625 | . 450 175 Parts Sabotaged . | . . . Parts Stolen . | . . . Parts Stripped . | . . . Power Chain Reactions 6 | . 6 . Alert | -11 -10 -10 ------- Run | Yrd Mat Sub Maximum Alert Level 1 | . 1 . Low Security (%) 93 | 100 92 . Level 1 6 | . 7 . Level 2 . | . . . Level 3 . | . . . Level 4 . | . . . Level 5 . | . . . High Security . | . . . Max Security . | . . . Peak Influence 222 | . 222 . Initial . | . . . Average 91 | . 93 . Influence Increases 697 | . 587 110 Destroy 0b10 Robot/C 340 | . 260 80 Destroy 0b10 Robot/NC 110 | . 110 . Destroy Leader 60 | . 60 . Successful Hack 24 | . 24 . Disable Machine 90 | . 90 . Destroy Structure 28 | . 28 . Lose Combat Pursuer 45 | . 15 30 Influence Decreases 697 | . 514 183 Entered New Map 36 | . . 36 Time Decay 631 | . 484 147 Lost Part 30 | . 30 . Squads Dispatched 4 | . 4 . Investigation 3 | . 3 . Extermination . | . . . Reinforcement 1 | . 1 . Assault . | . . . Garrison . | . . . Intercept . | . . . Searches Triggered . | . . . Construction Impeded . | . . . Haulers Reinforced . | . . . Active Scanning Responses . | . . . Cargo Convoy Interrupts . | . . . Stealth | -11 -10 -10 --------- Run | Yrd Mat Sub Distress Signals 1 | . 1 . Communications Jammed . | . . . Distress Signals . | . . . Times Spotted 41 | . 21 20 Peak Tracking Total 6 | . 4 6 Tactical Retreats 2 | . 1 1 Traps | -11 -10 -10 ------- Run | Yrd Mat Sub Traps Triggered 3 | . 2 1 Indirectly . | . . . Trap Hack Attempts . | . . . Triggered . | . . . Disarmed . | . . . Reprogrammed 1 | . 1 . Reused . | . . . Traps Extracted . | . . . Installed . | . . . Triggered . | . . . Machines | -11 -10 -10 ---------- Run | Yrd Mat Sub Machines Disabled 6 | . 6 . Max in Single Turn 2 | . 2 . Machines Repaired . | . . . Machines Dismantled . | . . . Machines Sabotaged . | . . . Overloaded Fab Kills . | . . . Hacking | -11 -10 -10 --------- Run | Yrd Mat Sub Machines Accessed 7 | . 6 1 Terminals 6 | . 6 . Fabricators . | . . . Repair Stations . | . . . Recycling Units . | . . . Scanalyzers . | . . . Garrison Access . | . . . Total Hacks 29 | . 25 4 Successful 18 | . 14 4 Failed 10 | . 10 . Catastrophic . | . . . Database Lockouts 1 | . 1 . Manual 13 | . 13 . Terminals 25 | . 25 . Fabricators . | . . . Repair Stations . | . . . Recycling Units . | . . . Scanalyzers . | . . . Garrison Access . | . . . Terminal Hacks 14 | . 10 4 Record 4 | . . 4 Robot Analysis 1 | . 1 . Branch Access Points 1 | . 1 . Alert Level 1 | . 1 . Locate Traps 3 | . 3 . Reprogram Traps 1 | . 1 . Registered Components 1 | . 1 . Zone Layout 2 | . 2 . Fabricator Hacks . | . . . Repair Station Hacks . | . . . Recycling Unit Hacks . | . . . Scanalyzer . | . . . Garrison Access Hacks . | . . . Unauthorized Hacks 4 | . 4 . Terminals 4 | . 4 . Botnet 3 | . 3 . Operators 1 | . 1 . Fabricators . | . . . Repair Stations . | . . . Recycling Units . | . . . Scanalyzers . | . . . Garrison Access . | . . . Data Cores Recovered 1 | . 1 . Used 1 | . 1 . Hacking Detections 6 | . 6 . Full Trace Events 2 | . 2 . Feedback Events . | . . . Feedback Blocked . | . . . Robot Schematics Acquired . | . . . Robots Built . | . . . Authchips . | . . . Time . | . . . Total Robot Build Rating . | . . . Part Schematics Acquired . | . . . Parts Built . | . . . Authchips . | . . . Time . | . . . Total Part Build Rating . | . . . Part Studies Acquired . | . . . Parts Repaired . | . . . Time . | . . . Parts Recycled . | . . . Recycled Matter . | . . . Retrieved Matter . | . . . Retrieved Components . | . . . Parts Scanalyzed . | . . . Part Schematics Acquired . | . . . Parts Damaged . | . . . Bothacking | -11 -10 -10 ------------ Run | Yrd Mat Sub Used RIF Installer . | . . . Robots Hacked . | . . . Non-combat . | . . . Combat . | . . . Robot Hacks Applied . | . . . Relay Couplers Released . | . . . Fabnet Peak Effective % . | . . . Robots Rewired . | . . . Allies Hacked . | . . . Hacks Repelled . | . . . Allies | -11 -10 -10 -------- Run | Yrd Mat Sub Total Allies . | . . . Largest Group . | . . . Highest-Rated Group . | . . . Highest-Rated Ally . | . . . Total Orders . | . . . Ally Attacks . | . . . Total Damage . | . . . Kills . | . . . Allies Corrupted . | . . . Allies Melted . | . . . Intel | -11 -10 -10 ------- Run | Yrd Mat Sub Active Infowar (turns) 460 | . . 460 Sensors 397 | . . 397 Structural 63 | . . 63 Robot Analysis Total 1 | . 1 . Derelict Logs Recovered 1 | . . 1 Drone Launches . | . . . Drone Recoveries . | . . . Exploration | -11 -10 -10 ------------- Run | Yrd Mat Sub Turns Passed 3651 | 43 1501 2107 Spaces Moved 2119 | 43 904 1172 Core 1 | 1 . . Treads . | . . . Legs . | . . . Wheels 2118 | 42 904 1172 Hover . | . . . Flight . | . . . Fastest Speed 50 | 50 80 130 Average Speed 129 | 79 130 130 Slowest Speed 175 | 80 175 150 Overloaded Moves . | . . . Propulsion Burnouts . | . . . Robots Hopped . | . . . Potential Cave-ins . | . . . Cave-ins Triggered . | . . . Exploration Rate (%) 48 | 3 92 49 Regions Visited 2 Branch Regions 1 Pre-discovered Areas 2 | . . 2 Known Exits Taken . | . . . Unknown Exits Taken 2 | 1 1 . Scrap Searched 5 | . . 5 Spaces Dug . | . . . Terrain Destroyed 25 | . 25 . Melee . | . . . Projectile . | . . . AOE 25 | . 25 . Terrain Rammed . | . . . Walls Destroyed . | . . . Machines Disabled . | . . . Actions | -11 -10 -10 --------- Run | Yrd Mat Sub Total 2762 | 49 1086 1627 Wait 371 | . 54 317 Move 2117 | 42 903 1172 Hop . | . . . Pick Up 48 | 2 25 21 Fast Attach 15 | 5 6 4 Attach 15 | . 4 11 Detach . | . . . Swap 23 | . 6 17 Drop 34 | . 12 22 Fire 116 | . 53 63 Melee 23 | . 23 . Ram . | . . . Kick . | . . . Crush . | . . . Escape Stasis . | . . . Rewire . | . . . Trap . | . . . Miscellaneous . | . . . Route ------- -11/Scrapyard -10/Materials (discovered 5 exits: [*Mat x3] / *Min / *Sub) -10/Subcaves (discovered 2 exits: [*Mat x2]) History --------- Turn | Location | Event 7 | -11/Scrapyard | Discovered new exit (range 16) 44 | -11/Scrapyard | Entered Materials 313 | -10/Materials | Build established: Mutant 395 | -10/Materials | Discovered new exit (range 13) 628 | -10/Materials | Discovered new exit (range 13) 628 | -10/Materials | Identified exit to Mines 717 | -10/Materials | Central database locked down 800 | -10/Materials | Discovered new exit (range 8) 1096 | -10/Materials | Discovered new exit (range 8) 1545 | -10/Materials | Entered Subcaves 1546 | -10/Subcaves | Approached by a straggling Scientist 1707 | -10/Subcaves | Discovered new exit (range 12) 1719 | -10/Subcaves | A Subdweller sparked back to life 1762 | -10/Subcaves | Found Prototype Processor 2234 | -10/Subcaves | Shifting Twisted Machinery released Sub. Machine Gun 2318 | -10/Subcaves | Core integrity fell below 50% 2732 | -10/Subcaves | Discovered new exit (range 8) 3278 | -10/Subcaves | Build established: Scavenger-Mutant 3563 | -10/Subcaves | Visited Clippyterm 3567 | -10/Subcaves | Learned location of Extension (-6) 3567 | -10/Subcaves | Learned Research security intel 3606 | -10/Subcaves | Learned location of Mines (-10) 3643 | -10/Subcaves | Core integrity fell below 20% 3652 | -10/Subcaves | Destroyed by TA-XFS(R) with Subdweller Laser Last Messages --------------- queries and responses. --DD-NU8 >>Record "Prison Break" It looks like you're planning to spring a Derelict or three, would you like help? World map updated: -6/Extension. >>Record "0b10 Defenses" It looks like you're afraid of guards, would you like help? Data stored: Research security intel. >>Record "LU-1G1" It looks like you're researching the legendary digger of dangerously deep tunnels, unfortunately it seems not even members of the Boring Crew know what became of that one. 03606_ Acquired derelict log, extracted data. World map updated: -10/Mines. 03631_ DX-8D0(R) destroyed. 03636_ Mak. Thermal Plating destroyed. 03644_ WJ-Z1U(R) destroyed. 03646_ Sub. Machine Gun destroyed. Map ----- +----------------------------------------------------+ | ?????????????????????????????????????????????????? | | ?????????????????????????????????????????????????? | | ?????????????????????????????????????????????????? | | ?????????????????????????????????????????????????? | | ?????????????????????????????????????????????????? | | ?????????????????????????????????????????????????? | | ?????????????????????????????????????????????????? | | ?????????????????????????????????????????????????? | | ?????????????????????????????????????????????????? | | ?????????????????????????????????????????????????? | | ?????????????????????????????????????????????????? | | ???????????????????????????????????????????###?### | | ??????????????????????????????????????????## ## | | ???????????????????????##?????????????????# | | ??????????????????????? #?????????????????# | | ??????????????????????? ?????????????????# | | ???????????#??????????? ########???????????# | | ??????????# ?????????? ##"""""#????????????# | | ???????????# "###?????? #""X""#?????????????# | | ????????#### "" ###### #" "#????????????## | | ????????# # ### ###??###???????# | | ????????# #?## ####?# ##??????# | | ????????# #### ### #?????## | | ???? ### =### = ####### | | ???? ??### %&%! ## | | ????? #### #=@ | | ????? ###R | | ????? #### | | ?????? ###### | | ?????? ### ###????## | | ??????? ????## # ## #??????## # | | ??????? ??????# ###### ###### ###??##### ## | | ???????????????# ?##?# ##???#####???## ## | | ?????????????" ""## ## ##?????###### # | | ????????????"""""""" #????## | | ????????????##"""" #???## | | ??????????????###" ## # ##??## | | ????????????????# ??## ##??## ### | | ??????????????? ?????# ##???? #?## | | ????????????? ???????## #?###?# #?## | | ???????????"" ?????????# #?# ### #?## | | ???????????"##??????????# % ### ## ### | | ????????????????????????#& & &] # | | ????????????????????????# % # | | ???????????????????????# #& &# ### ###### ### | | ???????????????????????###########?#####????####?? | | ?????????????????????????????????????????????????? | | ?????????????????????????????????????????????????? | | ?????????????????????????????????????????????????? | | ?????????????????????????????????????????????????? | +----------------------------------------------------+ Best States ------------- Heat Dissipation 39 Energy Generation 15 Energy Capacity 250 Matter Stores 300 Matter Capacity 300 Sight Range 16 Robot Scan Range 14 Terrain Scan Density 10 Armor Coverage 100 Resistance: TH 10 Evasion (%) 44 Targeting Accuracy 5 Item Schematics ----------------- None Robot Schematics ------------------ None Fabricated ------------ Nothing Repaired ---------- Nothing Studied --------- None Alien Tech Used ----------------- None Achievements -------------- None Challenges ------------ None Game ------ Seed AerolevStasisHammer Manual? 0 Play Time 00:25:06 Cumulative 343.0 hours Start 2025.12.26 @ 18:54:47 End 2025.12.26 @ 19:17:21 Sessions 1 Manual Loads 0 Difficulty Rogue Special Mode None Game No. 123 Rogue 123 Adventurer 0 Explorer 0 Win Type - Total 6 Types 4/0/0/0/0/0/0/1/0/1 Lore% 78 Gallery% 75 Achievement% 63 Wizard Run 0 Options --------- Layout 1 ASCII 0 Keyboard 0 Movement Mouse Keybinds 0 Fullscreen 2 Font 32/SmallcapsGlow Map View 50x35 Zoom Use 0% Tactical HUD 1 Map Filters NONE Filters NONE Steam 1 RUN: 0fd2dfb4-7e55-4744-ae48-6436967941a5